Workbook

Sheet Main
D3: AtriumCalc | H3: Version 1.1
D4: Atrium Smoke Control Calculator
B6: AtriumCalc consists of a number of routines that are commonly used for analysis of atrium
B7: smoke control systems. For AtriumCalc, the term atrium is used in a generic sense to mean
B8: any large-volume space.
B12: Enter Project Title: | D12: Atrium in Our Favorite Building, 10 Main Street, Kloteville, NY
B14: I-P Units | G14: SI Units
B26: AtriumCalc Version 1.1 © 2014 John H. Klote
B28: Disclaimer | J28: License Agreement
B29: ASHRAE and John H. Klote have no liability for the use of the AtriumCalc application or the documentation, “AtriumCalc: Atrium Smoke Control Calculator – Technical Information and User Guide.” The appropriateness, correctness, and accuracy of any and all analyses and designs for which the AtriumCalc application is used are the responsibility of the users of the AtriumCalc application. ASHRAE and John H. Klote are not liable to any user of the AtriumCalc application, including the documentation, for any indirect, special, incidental, punitive, cover, or consequential damages (including but not limited to damages for the inability to use equipment or access data, loss of business, loss of profits, business interruption or the like) arising out of the use of or the inability to use the AtriumCalc application and based on any theory of liability including breach of contract, breach of warranty, tort (including negligence), product liability, or otherwise, even if ASHRAE and/or John H. Klote have been advised of the possibility of such damages and even if a remedy set forth herein is found to have failed of its essential purpose. John H. Klote and ASHRAE reserve the right to discontinue support for this product at any time in the future, including without limitation discontinuing support of servers facilitating access to this product. In the event of discontinuation of support, ASHRAE will make a reasonable effort to notify purchasers before support is discontinued. | J29: Using this product indicates your acceptance of the terms and conditions of this agreement. The title and all copyrights and ownership rights are retained by John H. Klote. You assume responsibility for the selection of this product to achieve your intended results and for the installation, use, and results obtained. This product is for personal use only. “Personal use” includes showing the information in a group setting and using pages printed from AtriumCalc in engineering reports; it does not include making copies, in whole or in part, of the information for the purposes of distribution, reusing the information in your own presentation, posting the files on a server for access by others, or using the product on a LAN or WAN. You may use the product on a single machine. You shall not merge, adapt, translate, modify, rent, lease, sell, sublicense, assign, or otherwise transfer any content. Doing so will result in the termination of your license, and the copyright holder will consider options to recover damages from unauthorized use of its intellectual property. Distribution to third parties in print or in electronic form is expressly prohibited unless authorized in writing by the copyright holder. For information on obtaining permissions and licensing, visit www.ashrae.org/permissions.

Sheet Inst
B1: =Main!B26 -> AtriumCalc Version 1.1 © 2014 John H. Klote

Sheet Q_A
B1: =Main!B26 -> AtriumCalc Version 1.1 © 2014 John H. Klote

Sheet Atrium-Fire-IP
B1: =Main!B26 -> AtriumCalc Version 1.1 © 2014 John H. Klote
B3: Project: | C3: =Main!D12 -> Atrium in Our Favorite Building, 10 Main Street, Kloteville, NY
B4: Routine 1: Atrium Smoke Exhaust with an Axisymmetric Plume
B19: Input: | C19: Q = | D19: 3500 | E19: Btu/s | G19: Output: | H19: Qc = | I19: =D24*D19 -> 2450 | J19: Btu/s
C20: z = | D20: 40 | E20: ft | H20: zl = | I20: =0.533*(I19^0.4) -> 12.08909089 | J20: ft
C21: To = | D21: 92 | E21: oF | H21: m = | I21: =IF(D20>I20,'A-Fire-IP'!C11,'A-Fire-IP'!C12) -> 149.0437389 | J21: lb/s
C22: patm = | D22: 14.7 | E22: psi | H22: Ts = | I22: =D21+D23*I19/(I21*0.24) -> 160.4921984 | J22: oF
C23: Ks = | D23: 1 | E23: (See note 2 above) | I23: =144*D22/(53.34*(I22+460)) -> 0.06395735429 | J23: lb/ft3
D24: 0.7 | E24: (Almost always 0.70) | H24: V = | I24: =60*I21/I23 -> 139821.6738 | J24: cfm
C25: =IF(D23=1," ","CAUTION: See note 2 above. ") -> 
C26: =IF(D24=0.7," ","CAUTION: See note 3 above. ") -> 

Sheet A-Fire-IP (hidden)
A1: Q = | B1: ='Atrium-Fire-IP'!D19 -> 3500 | C1: Btu/s
A2: z = | B2: ='Atrium-Fire-IP'!D20 -> 40 | C2: ft
A3: To = | B3: ='Atrium-Fire-IP'!D21 -> 92 | C3: oF
A4: patm = | B4: ='Atrium-Fire-IP'!D22 -> 14.7 | C4: psi
B5: ='Atrium-Fire-IP'!D24 -> 0.7 | C5: (0.70 is almost always used)
A7: Qc = | B7: ='Atrium-Fire-IP'!I19 -> 2450 | C7: Btu/s
A8: zl = | B8: ='Atrium-Fire-IP'!I20 -> 12.08909089 | C8: ft
A11: For z > zl, m= | C11: =0.022*(B7^(1/3))*(B2^(5/3))+0.0042*B7 -> 149.0437389 | D11: lb/s
A12: For z < zl, m= | C12: =0.0208*(B7^0.6)*B2 -> 89.87170416 | D12: lb/s

Sheet Atrium-Fire-SI
B1: =Main!B26 -> AtriumCalc Version 1.1 © 2014 John H. Klote
B3: Project: | C3: =Main!D12 -> Atrium in Our Favorite Building, 10 Main Street, Kloteville, NY
B4: Routine 1: Atrium Smoke Exhaust with an Axisymmetric Plume
B15: Input: | C15: Q = | D15: 4000 | E15: kW | G15: Output: | H15: Qc = | I15: =D20*D15 -> 2800 | J15: kW
C16: z = | D16: 12 | E16: m | H16: zl = | I16: =0.166*(I15^0.4) -> 3.971653028 | J16: m
C17: To = | D17: 30 | E17: oC | H17: m = | I17: =IF(D16>I16, 'A-Fire-SI'!C11,'A-Fire-SI'!C12) -> 67.9828547 | J17: kg/s
C18: patm = | D18: 101300 | E18: Pa | H18: Ts = | I18: =D17+D19*I15/I17 -> 71.18685531 | J18: oC
C19: Ks = | D19: 1 | E19: (See note 2 above) | I19: =D18/(287*(I18+273)) -> 1.025494341 | J19: kg/m3
D20: 0.7 | E20: (Almost always 0.70) | H20: V = | I20: =I17/I19 -> 66.29276434 | J20: m3/s
C21: =IF(D19=1," ","CAUTION: See note 2 above. ") -> 
C22: =IF(D20=0.7," ","CAUTION: See note 3 above. ") -> 

Sheet A-Fire-SI (hidden)
A1: Q = | B1: ='Atrium-Fire-SI'!D15 -> 4000 | C1: kW
A2: z = | B2: ='Atrium-Fire-SI'!D16 -> 12 | C2: m
A3: To = | B3: ='Atrium-Fire-SI'!D17 -> 30 | C3: oC
A4: patm = | B4: ='Atrium-Fire-SI'!D18 -> 101300 | C4: Pa
B5: ='Atrium-Fire-SI'!D20 -> 0.7 | C5: (0.70 is almost always used)
A8: Qc = | B8: ='Atrium-Fire-SI'!I15 -> 2800 | C8: kW
A9: zl = | B9: ='Atrium-Fire-SI'!I16 -> 3.971653028 | C9: m
A11: For z > zl, m= | C11: =0.071*(B8^(1/3))*(B2^(5/3))+0.0018*B8 -> 67.9828547 | D11: kg/s
A12: For z < zl, m= | C12: =0.032*(B8^0.6)*B2 -> 44.93927308 | D12: kg/s

Sheet Balcony-IP
B1: =Main!B26 -> AtriumCalc Version 1.1 © 2014 John H. Klote
B3: Project: | C3: =Main!D12 -> Atrium in Our Favorite Building, 10 Main Street, Kloteville, NY
B4: Routine 2: Atrium Smoke Exhaust with a Balcony Spill Plume
B22: Input: | C22: Q = | D22: 1000 | E22: Btu/s | G22: Output: | H22: Qc = | I22: =D29*D22 -> 700 | J22: Btu/s
C23: H = | D23: 10 | E23: ft | H23: m = | I23: ='Bal-IPW'!C22 -> 269.1498862 | J23: lb/s
C24: W = | D24: 19 | E24: ft (See note 2 above) | H24: Ts = | I24: =D26+D28*I22/(I23*0.24) -> 93.83658889 | J24: oF
C25: zb = | D25: 29 | E25: ft | I25: =144*D27/(53.34*(I24+460)) -> 0.07165478079 | J25: lb/ft3
C26: To = | D26: 83 | E26: oF | H26: V = | I26: =60*I23/I25 -> 225372.1663 | J26: cfm
C27: patm = | D27: 14.7 | E27: psi
C28: Ks = | D28: 1 | E28: (See note 3 above)
D29: 0.7 | E29: (Almost always 0.70)
C30: ='Bal-IPW'!C21 -> Note: Flow is in region 1.
C31: =IF(D28=1," ","CAUTION: See note 3 above. ") ->  | G31: =IF(D29=0.7," ","CAUTION: See note 4 above. ") -> 

Sheet Bal-IPW (hidden)
B1: Work Space for Plugholing IP
B2: Q = | C2: ='Balcony-IP'!D22 -> 1000 | D2: Btu/s
B3: H = | C3: ='Balcony-IP'!D23 -> 10 | D3: ft
B4: W = | C4: ='Balcony-IP'!D24 -> 19 | D4: ft
B5: zb = | C5: ='Balcony-IP'!D25 -> 29 | D5: ft
B6: To = | C6: ='Balcony-IP'!D26 -> 83 | D6: oF
B7: patm = | C7: ='Balcony-IP'!D27 -> 14.7 | D7: psi
C8: ='Balcony-IP'!D29 -> 0.7
B10: Qc = | C10: =C8*C2 -> 700 | D10: kW
B11: m1 = | C11: =0.12*((C2*(C4^2))^(1/3))*(C5+0.25*C3) -> 269.1498862
B12: m2 = | C12: =0.32*(C10^(1/3))*(C4^0.2)*(C5+0.098*(C4^(7/15))*C3+19.5*(C4^(7/15))-49.2) -> 310.9086481
B13: m3 = | C13: =0.062*((C10*(C4^2))^(1/3))*(C5+0.51*C3+52) -> 337.491823
B15: Regions
B16: 1 | C16: zb < 50 ft
B17: 2 | C17: zb $ 50 ft and W < 32.8 ft
B18: 3 | C18: zb $ 50 ft and 32.8 ft $ W $ 45.9 ft
B19: zb = | C19: =C5 -> 29
B20: W = | C20: =C4 -> 19
B21: Region | C21: =IF(C19 < 50, "Note: Flow is in region 1.", IF(C20 < 32.8, "Note: Flow is in region 2.", IF(C20>44.9, "CAUTION: Flow is beyond region 3, but it is calculated with the region 3 equation.", "Note: Flow is in region 3."))) -> Note: Flow is in region 1.
B22: m = | C22: =IF(C19 < 50, C11, IF(C20 < 32.8, C12, C13)) -> 269.1498862

Sheet Balcony-SI
B1: =Main!B26 -> AtriumCalc Version 1.1 © 2014 John H. Klote
B3: Project: | C3: =Main!D12 -> Atrium in Our Favorite Building, 10 Main Street, Kloteville, NY
B4: Routine 2: Atrium Smoke Exhaust with a Balcony Spill Plume
B23: Input: | C23: Q = | D23: 1000 | E23: kW | G23: Output: | H23: Qc = | I23: =D30*D23 -> 700 | J23: kW
C24: H = | D24: 3.1 | E24: m | H24: m = | I24: ='Bal-SIW'!C22 -> 116.1948199 | J24: kg/s
C25: W = | D25: 6 | E25: m (See note 2 above) | H25: Ts = | I25: =D27+D29*I23/I24 -> 34.02436495 | J25: oC
C26: zb = | D26: 9 | E26: m | I26: =D28/(287*(I25+273)) -> 1.149621049 | J26: kg/m3
C27: To = | D27: 28 | E27: oC | H27: V = | I27: =I24/I26 -> 101.0722794 | J27: m3/s
C28: patm = | D28: 101300 | E28: Pa
C29: Ks = | D29: 1 | E29: (See note 3 above)
D30: 0.7 | E30: (Almost always 0.70)
C31: ='Bal-SIW'!C21 -> Note: Flow is in region 1.
C32: =IF(D29=1," ","CAUTION: See note 3 above. ") ->  | G32: =IF(D30=0.7," ","CAUTION: See note 4 above. ") -> 

Sheet Bal-SIW (hidden)
B1: Work Space for Plugholing SI
C2: =E2/1.055 -> 947.8672986 | D2: Btu/s | E2: ='Balcony-SI'!D23 -> 1000 | F2: kW
C3: =E3/0.3048 -> 10.17060367 | D3: ft | E3: ='Balcony-SI'!D24 -> 3.1 | F3: m
C4: =E4/0.3048 -> 19.68503937 | D4: ft | E4: ='Balcony-SI'!D25 -> 6 | F4: m
C5: =E5/0.3048 -> 29.52755906 | D5: ft | E5: ='Balcony-SI'!D26 -> 9 | F5: m
C6: =E6*1.8+32 -> 82.4 | D6: oF | E6: ='Balcony-SI'!D27 -> 28 | F6: oC
C7: =E7/6894.8 -> 14.69223183 | D7: psi | E7: ='Balcony-SI'!D28 -> 101300 | F7: Pa
C8: =E8 -> 0.7 | E8: ='Balcony-SI'!D30 -> 0.7
D10: Qc = | E10: =E2*E8 -> 700 | F10: kW
D11: m1 = | E11: =0.36*((E2*(E4^2))^(1/3))*(E5+0.25*E3) -> 116.1948199 | F11: kg/s
D12: m2 = | E12: =0.59*(E10^(1/3))*(E4^0.2)*(E5+0.17*(E4^(7/15))*E3+10.35*(E4^(7/15))-15) -> 143.1679182 | F12: kg/s
D13: m3 = | E13: =0.2*((E10*(E4^2))^(1/3))*(E5+0.51*E3+15.75) -> 154.3941576 | F13: kg/s
B15: Regions
B16: 1 | C16: zb < 15 m
B17: 2 | C17: zb $ 15 m and W < 10 m
B18: 3 | C18: zb $ 15 m and 10 m $ W $ 14 m
B19: zb = | C19: =E5 -> 9
B20: W = | C20: =E4 -> 6
B21: Region | C21: =IF(C19 < 15, "Note: Flow is in region 1.", IF(C20 < 10, "Note: Flow is in region 2.", IF(C20>14, "CAUTION: Flow is beyond region 3, but it is calculated with the region 3 equation.", "Note: Flow is in region 3."))) -> Note: Flow is in region 1.
B22: m = | C22: =IF(C19 < 15, E11, IF(C20 < 10, E12, E13)) -> 116.1948199 | D22: kg/s

Sheet Win-IP
B1: =Main!B26 -> AtriumCalc Version 1.1 © 2014 John H. Klote
B3: Project: | C3: =Main!D12 -> Atrium in Our Favorite Building, 10 Main Street, Kloteville, NY
B4: Routine 3: Steady Atrium Smoke Exhaust with a Window Plume
B21: Input: | C21: Hw = | D21: 9 | E21: ft | G21: Output: | H21: Q = | I21: =61.2*D21*D22*(D21^0.5) -> 11566.8 | J21: Btu/s
C22: Ww = | D22: 7 | E22: ft | H22: Qc = | I22: =D27*I21 -> 8096.76 | J22: Btu/s
C23: zw = | D23: 40 | E23: ft | H23: m = | I23: ='Win-IP2'!B19 -> 246.2456066 | J23: lb/s
C24: To = | D24: 80 | E24: oF | H24: Ts = | I24: =D24+D26*I22/(I23*0.24) -> 217.0034596 | J24: oF
C25: patm = | D25: 14.7 | E25: psi | I25: =144*D25/(53.34*(I24+460)) -> 0.05861866555 | J25: lb/ft3
C26: Ks = | D26: 1 | E26: (See note 3 above) | H26: V = | I26: =60*I23/I25 -> 252048.3238 | J26: cfm
D27: 0.7 | E27: (Almost always 0.70)
C29: =IF(D26=1," ","CAUTION: See note 3 above. ") ->  | G29: =IF(D27=0.7," ","CAUTION: See note 4 above. ") -> 

Sheet Win-IP2 (hidden)
A3: INPUT
A4: Hw = | B4: ='Win-IP'!D21 -> 9 | C4: ft
A5: Ww = | B5: ='Win-IP'!D22 -> 7 | C5: ft
A6: zw = | B6: ='Win-IP'!D23 -> 40 | C6: ft
A7: To = | B7: ='Win-IP'!D24 -> 80 | C7: ft
A8: Patm = | B8: ='Win-IP'!D25 -> 14.7 | C8: psi
A9: Xc = | B9: ='Win-IP'!D27 -> 0.7
A11: Aw = | B11: =B4*B5 -> 63 | C11: m2
A13: a = (2.4*(Aw^.4)*(Hw^.2)) - 2.1*Hw | E13: =(2.4*(B11^0.4)*(B4^0.2))-2.1*B4 -> 0.6342149993
A14: A = (Aw*(Hw^0.5))^(1/3) | E14: =(B11*(B4^0.5))^(1/3) -> 5.738793548
A15: B = (zw + a)^(5/3) | E15: =(B6+E13)^(5/3) -> 480.2711032
A16: C = Aw*(Hw^.5) | E16: =B11*(B4^0.5) -> 189
A18: m = (0.077*A*B)+0.18*C
A19: m = | B19: =(0.077*E14*E15)+0.18*E16 -> 246.2456066

Sheet Win-SI
B1: =Main!B26 -> AtriumCalc Version 1.1 © 2014 John H. Klote
B3: Project: | C3: =Main!D12 -> Atrium in Our Favorite Building, 10 Main Street, Kloteville, NY
B4: Routine 3: Steady Atrium Smoke Exhaust with a Window Plume
B18: Input: | C18: Hw = | D18: 2.8 | E18: m | H18: Output: | I18: Q = | J18: =1260*D18*D19*(D18^0.5) -> 12987.64092 | K18: kW
C19: Ww = | D19: 2.2 | E19: m | I19: Qc = | J19: =D24*J18 -> 9091.348647 | K19: kW
C20: zw = | D20: 12 | E20: m | I20: m = | J20: ='Win-SI2'!B19 -> 112.3590695 | K20: kg/s
C21: To = | D21: 26.6667 | E21: oC | I21: Ts = | J21: =D21+D23*J19/J20 -> 107.5800493 | K21: oC
C22: patm = | D22: 101300 | E22: Pa | J22: =D22/(287*(J21+273)) -> 0.9274308337 | K22: kg/m3
C23: Ks = | D23: 1 | E23: (See note 3 above) | I23: V = | J23: =J20/J22 -> 121.1508885 | K23: m3/s
D24: 0.7 | E24: (Almost always 0.70)
C26: =IF(D23=1," ","CAUTION: See note 3 above. ") ->  | H26: =IF(D24=0.7," ","CAUTION: See note 4 above. ") -> 

Sheet Win-SI2 (hidden)
A3: INPUT
A4: Hw = | B4: ='Win-SI'!D18 -> 2.8 | C4: m
A5: Ww = | B5: ='Win-SI'!D19 -> 2.2 | C5: m
A6: zw = | B6: ='Win-SI'!D20 -> 12 | C6: m
A7: To = | B7: ='Win-SI'!D21 -> 26.6667 | C7: C
A8: Patm = | B8: ='Win-SI'!D22 -> 101300 | C8: Pa
A9: Xc = | B9: ='Win-SI'!D24 -> 0.7
A11: Aw = | B11: =B4*B5 -> 6.16 | C11: m2
A13: a = (2.4*(Aw^.4)*(Hw^.2)) - 2.1*Hw | E13: =(2.4*(B11^0.4)*(B4^0.2))-2.1*B4 -> 0.2220411613
A14: A = (Aw*(Hw^0.5))^(1/3) | E14: =(B11*(B4^0.5))^(1/3) -> 2.176305749
A15: B = (zw + a)^(5/3) | E15: =(B6+E13)^(5/3) -> 64.84944097
A16: C = Aw*(Hw^.5) | E16: =B11*(B4^0.5) -> 10.30765153
A18: m = (0.68*A*B)+1.59*C
A19: m = | B19: =(0.68*E14*E15)+1.59*E16 -> 112.3590695

Sheet Plug-IP
B1: =Main!B26 -> AtriumCalc Version 1.1 © 2014 John H. Klote
B3: Preventing Plugholing

Sheet Plug-IP-A
B1: =Main!B26 -> AtriumCalc Version 1.1 © 2014 John H. Klote
B3: Project: | C3: =Main!D12 -> Atrium in Our Favorite Building, 10 Main Street, Kloteville, NY
B4: Routine 4A: Preventing Plugholing with Rectangular Inlets
B18: Input: | C18: Qc = | D18: 1400 | E18: Btu/s | H18: Output: | I18: Ts = | J18: =D19+D24*D18/(D20*0.24) -> 99.07942838 | K18: oF
C19: To = | D19: 70 | E19: oF | I19: Vmax = | J19: =452*D23*(D22^2.5)*(((J18-D19)/(D19+460))^0.5) -> 29840.20907 | K19: cfm
C20: m = | D20: 100.3 | E20: lb/s | I20: Ve = | J20: =D21/D27 -> 23150 | K20: cfm
C21: V = | D21: 92600 | E21: cfm | I21: Smin = | J21: =0.065*(J20^0.5) -> 9.889830636 | K21: ft (See note 6 above.)
C22: d = | D22: 9.55 | E22: ft | I22: Di = | J22: =2*D25*D26/(D25+D26) -> 4.444444444 | K22: ft
D23: 1 | E23: =IF(Plug1!C6 > 1, "(See notes 1, 2 and 3)","CAUTION see notes 1, 2 & 3.") -> (See notes 1, 2 and 3) | I23: d/Di = | J23: =D22/J22 -> 2.14875
C24: Ks = | D24: 0.5 | E24: (See note 7 above) | I24: vi = | J24: =ROUND(J20/(D28*D25*D26),0) -> 2315 | K24: fpm
C25: a = | D25: 4 | E25: ft
C26: b = | D26: 5 | E26: ft | H26: =IF(D24=0.5," ","CAUTION: See note 7 above. ") -> 
C27: N = | D27: 4 | E27: Number of Inlets
C28: Ar = | D28: 0.5 | E28: (In the absence of better data, 0.5 is suggested.)
C29: Check 1: | D29: =IF(J23<2,"CAUTION: The requirement of note 4 above is not satisfied.","The requirement of note 4 above is satisfied.") -> The requirement of note 4 above is satisfied.
C30: Check 2: | D30: =IF(J19-J20>0,"The requirement of note 5 above is satisfied.","CAUTION: The requirement of note 5 above is not satisfied.") -> The requirement of note 5 above is satisfied.

Sheet Plug1 (hidden)
C2: ='Plug-IP-A'!D23 -> 1
B4: Ck 1 | C4: =IF(C2=1,1000,0) -> 1000
B5: Ck 0.5 | C5: =IF(C2=0.5,1000,0) -> 0
B6: Sum | C6: =C4+C5 -> 1000

Sheet Plug-IP-B
B1: =Main!B26 -> AtriumCalc Version 1.1 © 2014 John H. Klote
B3: Project: | C3: =Main!D12 -> Atrium in Our Favorite Building, 10 Main Street, Kloteville, NY
B4: Routine 4B: Preventing Plugholing with Round Inlets
B23: Input: | C23: Qc = | D23: 1400 | E23: Btu/s | G23: Output: | H23: Ts = | I23: =D24+D29*D23/(D25*0.24) -> 99.07942838 | J23: oF
C24: To = | D24: 70 | E24: oF | H24: Vmax = | I24: =ROUND(452*D28*(D27^2.5)*((I23-D24)/(D24+460))^0.5,0) -> 29840 | J24: cfm
C25: m = | D25: 100.3 | E25: lb/s | H25: Ve = | I25: =D26/D31 -> 18520 | J25: cfm
C26: V = | D26: 92600 | E26: cfm | H26: Smin = | I26: =0.065*(I25^0.5) -> 8.845733435 | J26: ft (See note 6 above.)
C27: d = | D27: 9.55 | E27: ft | H27: d/Di = | I27: =D27/D30 -> 2.010526316
D28: 1 | E28: =IF(Plug2!C6 > 1, "(See notes 1, 2 and 3)","CAUTION see notes 1, 2 & 3.") -> (See notes 1, 2 and 3) | H28: vi = | I28: =I25/(D32*3.14156*((D30^2/4))) -> 2090.250767 | J28: fpm
C29: Ks = | D29: 0.5 | E29: (See note 7 above)
C30: Di = | D30: 4.75 | E30: ft | H30: =IF(D29=0.5," ","CAUTION: See note 7 above. ") -> 
C31: N = | D31: 5 | E31: Number of Inlets
C32: Ar = | D32: 0.5 | E32: (In the absence of better data, 0.5 is suggested.)
C33: Check 1: | D33: =IF(I27<2,"CAUTION: The requirement of note 4 above is not satisfied.","The requirement of note 4 above is satisfied.") -> The requirement of note 4 above is satisfied.
C34: Check 2: | D34: =IF(I24-I25>0,"The requirement of note 5 above is satisfied.","CAUTION: The requirement of note 5 above is not satisfied.") -> The requirement of note 5 above is satisfied.

Sheet Plug2 (hidden)
C2: ='Plug-IP-B'!D28 -> 1
B4: Ck 1 | C4: =IF(C2=1,1000,0) -> 1000
B5: Ck 0.5 | C5: =IF(C2=0.5,1000,0) -> 0
B6: Sum | C6: =C4+C5 -> 1000

Sheet Plug-SI
B1: =Main!B26 -> AtriumCalc Version 1.1 © 2014 John H. Klote
B3: Preventing Plugholing

Sheet Plug-SI-A
B1: =Main!B26 -> AtriumCalc Version 1.1 © 2014 John H. Klote
B3: Project: | C3: =Main!D12 -> Atrium in Our Favorite Building, 10 Main Street, Kloteville, NY
B4: Routine 4A: Preventing Plugholing with Rectangular Inlets
B24: Input: | C24: Qc = | D24: 1500 | E24: kW | G24: Output: | H24: Ts = | I24: =D25+D30*D24/D26 -> 37.48351648 | J24: oC
C25: To = | D25: 21 | E25: oC | H25: Vmax = | I25: =ROUND(4.16*D29*(D28^2.5)*((I24-D25)/(D25+273))^0.5,2) -> 15.35 | J25: m3/s
C26: m = | D26: 45.5 | E26: kg/s | H26: Ve = | I26: =ROUND(D27/D33, 2) -> 10.93 | J26: m3/s
C27: V = | D27: 43.7 | E27: m3/s | H27: Smin = | I27: =0.9*(I26^0.5) -> 2.975449546 | J27: m (See note 6 above.)
C28: d = | D28: 3 | E28: m | H28: Di = | I28: =2*D31*D32/(D31+D32) -> 1.354666667 | J28: m
D29: 1 | E29: =IF(Plug3!C6 > 1, "(See notes 1, 2 and 3)","CAUTION see notes 1, 2 & 3.") -> (See notes 1, 2 and 3) | H29: d/Di = | I29: =ROUND(D28/I28,2) -> 2.21
C30: Ks = | D30: 0.5 | E30: (See note 7 above) | H30: vi = | I30: =I26/(D34*D31*D32) -> 11.76495409 | J30: m/s
C31: a = | D31: 1.2192 | E31: m
C32: b = | D32: 1.524 | E32: m | H32: =IF(D30=0.5," ","CAUTION: See note 7 above. ") -> 
C33: N = | D33: 4 | E33: Number of Inlets
C34: Ar = | D34: 0.5 | E34: (In the absence of better data, 0.5 is suggested.)
C35: Check 1: | D35: =IF(I29<2,"CAUTION: The requirement of note 4 above is not satisfied.","The requirement of note 4 above is satisfied.") -> The requirement of note 4 above is satisfied.
C36: Check 2: | D36: =IF(I25-I26>0,"The requirement of note 5 above is satisfied.","CAUTION: The requirement of note 5 above is not satisfied.") -> The requirement of note 5 above is satisfied.

Sheet Plug3 (hidden)
C2: ='Plug-SI-A'!D29 -> 1
B4: Ck 1 | C4: =IF(C2=1,1000,0) -> 1000
B5: Ck 0.5 | C5: =IF(C2=0.5,1000,0) -> 0
B6: Sum | C6: =C4+C5 -> 1000

Sheet Plug-SI-B
B1: =Main!B26 -> AtriumCalc Version 1.1 © 2014 John H. Klote
B3: Project: | C3: =Main!D12 -> Atrium in Our Favorite Building, 10 Main Street, Kloteville, NY
B4: Routine 4B: Preventing Plugholing with Round Inlets
B20: Input: | C20: Qc = | D20: 1500 | E20: kW | F20: Output: | G20: Ts = | H20: =D21+D26*D20/D22 -> 36.48351648 | I20: oC
C21: To = | D21: 20 | E21: oC | G21: Vmax = | H21: =ROUND(4.16*D25*(D24^2.5)*((H20-D21)/(D21+273))^0.5,2) -> 15.38 | I21: m3/s
C22: m = | D22: 45.5 | E22: kg/s | G22: Ve = | H22: =ROUND(D23/D28,2) -> 8.74 | I22: m3/s
C23: V = | D23: 43.7 | E23: m3/s | G23: Smin = | H23: =0.9*(H22^0.5) -> 2.66071419 | I23: m (See note 6 above.)
C24: d = | D24: 3 | E24: m | G24: d/Di = | H24: =ROUND(D24/D27,2) -> 2.07
D25: 1 | E25: =IF(Plug4!C6 > 1, "(See notes 1, 2 and 3)","CAUTION see notes 1, 2 & 3.") -> (See notes 1, 2 and 3) | G25: vi = | H25: =H22/(D29*3.14159*D27*D27/4) -> 10.61780559 | I25: m/s
C26: Ks = | D26: 0.5 | E26: (See note 7 above)
C27: Di = | D27: 1.4478 | E27: m | G27: =IF(D26=0.5," ","CAUTION: See note 7 above. ") -> 
C28: N = | D28: 5 | E28: Number of Inlets
C29: Ar = | D29: 0.5 | E29: (In the absence of better data, 0.5 is suggested.)
C30: Check 1: | D30: =IF(H24<2,"CAUTION: The requirement of note 4 above is not satisfied.","The requirement of note 4 above is satisfied.") -> The requirement of note 4 above is satisfied.
C31: Check 2: | D31: =IF(H21-H22>0,"The requirement of note 5 above is satisfied.","CAUTION: The requirement of note 5 above is not satisfied.") -> The requirement of note 5 above is satisfied.

Sheet Plug4 (hidden)
C2: ='Plug-SI-B'!D25 -> 1
B4: Ck 1 | C4: =IF(C2=1,1000,0) -> 1000
B5: Ck 0.5 | C5: =IF(C2=0.5,1000,0) -> 0
B6: Sum | C6: =C4+C5 -> 1000

Sheet Airflow-IP
B1: =Main!B26 -> AtriumCalc Version 1.1 © 2014 John H. Klote
B3: Airflow to Control Smoke

Sheet Air_IP_A
B1: =Main!B26 -> AtriumCalc Version 1.1 © 2014 John H. Klote
B3: Project: | C3: =Main!D12 -> Atrium in Our Favorite Building, 10 Main Street, Kloteville, NY
B4: Routine 5A: Airflow to Control Smoke Flow from a Communicating Space
B16: Input: | C16: H = | D16: 8 | E16: ft | F16: Output: | G16: ve = | H16: =ROUND(38*(((32.2*D16*(D18-D17)/(D18+460))^0.5)),1) -> 175.5 | I16: fpm
C17: To = | D17: 72 | E17: oF | G17: V = | H17: =H16*D19 -> 5265 | I17: cfm
C18: Tf = | D18: 120 | E18: oF
C19: A = | D19: 30 | E19: ft2
C20: =IF(H16>200,"CAUTION: The limiting average air velocity exceeds the upper limit of 200 fpm.","Note: The limiting average air velocity does not the exceed the upper limit of 200 fpm.") -> Note: The limiting average air velocity does not the exceed the upper limit of 200 fpm.
C21: =IF(H16>200, "See note 3 above."," ") -> 

Sheet Air_IP_B
B1: =Main!B26 -> AtriumCalc Version 1.1 © 2014 John H. Klote
B3: Project: | C3: =Main!D12 -> Atrium in Our Favorite Building, 10 Main Street, Kloteville, NY
B4: Routine 5B: Airflow to Control Smoke Flow from the Smoke Layer
B22: Note: The temperatures, Tf and To, can be determined from routine 1, 2 or 3.
B24: Input: | C24: H = | D24: 8 | E24: ft | F24: Output: | G24: ve = | H24: =ROUND(38*(((32.2*D24*(D26-D25)/(D26+460))^0.5)),1) -> 157.5 | I24: fpm
C25: To = | D25: 72 | E25: oF | G25: V = | H25: =H24*D27 -> 7875 | I25: cfm
C26: Tf = | D26: 110 | E26: oF
C27: A = | D27: 50 | E27: ft2
C28: =IF(H24>200,"CAUTION: The limiting average air velocity exceeds the upper limit of 200 fpm.","Note: The limiting average air velocity does not the exceed the upper limit of 200 fpm.") -> Note: The limiting average air velocity does not the exceed the upper limit of 200 fpm.
C29: =IF(H24>200, "See note 3 above."," ") -> 

Sheet Air_IP_C
B1: =Main!B26 -> AtriumCalc Version 1.1 © 2014 John H. Klote
B3: Project: | C3: =Main!D12 -> Atrium in Our Favorite Building, 10 Main Street, Kloteville, NY
B4: Routine 5C: Airflow to Control Smoke Flow from the Plume
B17: Input: | C17: Q = | D17: 5000 | E17: Btu/s | G17: Output: | H17: ve = | I17: =ROUND(17*(D17/D19)^(1/3),1) -> 93.6 | J17: fpm
C18: A = | D18: 200 | E18: ft2 | H18: V = | I18: =D18*I17 -> 18720 | J18: cfm
C19: z = | D19: 30 | E19: ft
C20: =IF(D19<10,"CAUTION: The requirement of note 3 above is not satisfied.", "Note: The requirement of note 3 above is satisfied. ") -> Note: The requirement of note 3 above is satisfied.
C21: =IF(I17>200,"CAUTION: The limiting average air velocity exceeds the upper limit of 200 fpm.","Note: The limiting average air velocity does not the exceed the upper limit of 200 fpm.") -> Note: The limiting average air velocity does not the exceed the upper limit of 200 fpm.
C22: =IF(I17>200,"See note 4 above."," ") -> 

Sheet Airflow-SI
B1: =Main!B26 -> AtriumCalc Version 1.1 © 2014 John H. Klote
B3: Airflow to Control Smoke

Sheet Air_SI_A
B1: =Main!B26 -> AtriumCalc Version 1.1 © 2014 John H. Klote
B3: Project: | C3: =Main!D12 -> Atrium in Our Favorite Building, 10 Main Street, Kloteville, NY
B4: Routine 5A: Airflow to Control Smoke Flow from a Communicating Space
B22: Input: | C22: H = | D22: 2.49936 | E22: m | F22: Output: | G22: ve = | H22: =0.64*(((9.81*D22*(D24-D23)/(D24+273))^0.5)) -> 0.9628260503 | I22: m/s
C23: To = | D23: 22 | E23: oC | G23: V = | H23: =H22*D25 -> 2.888478151 | I23: m3/s
C24: Tf = | D24: 52 | E24: oC
C25: A = | D25: 3 | E25: m2
C26: =IF(H22>1.02,"CAUTION: The limiting average air velocity exceeds the upper limit of 1.02 m/s.","Note: The limiting average air velocity does not the exceed the upper limit of 1.02 m/s.") -> Note: The limiting average air velocity does not the exceed the upper limit of 1.02 m/s.
C27: =IF(H22>1.02,"See note 3 above."," ") -> 

Sheet Air_SI_B
B1: =Main!B26 -> AtriumCalc Version 1.1 © 2014 John H. Klote
B3: Project: | C3: =Main!D12 -> Atrium in Our Favorite Building, 10 Main Street, Kloteville, NY
B4: Routine 5B: Airflow to Control Smoke Flow from the Smoke Layer
B21: Note: The temperatures, Tf and To, can be determined from routine 1, 2 or 3.
B23: Input: | C23: H = | D23: 2.5 | E23: m | F23: Output: | G23: ve = | H23: =0.64*(((9.81*D23*(D25-D24)/(D25+273))^0.5)) -> 0.8170536756 | I23: m/s
C24: To = | D24: 22 | E24: oC | G24: V = | H24: =H23*D26 -> 4.085268378 | I24: m3/s
C25: Tf = | D25: 43 | E25: oC
C26: A = | D26: 5 | E26: m2
C27: =IF(H23>1.02,"CAUTION: The limiting average air velocity exceeds the upper limit of 1.02 m/s.","Note: The limiting average air velocity does not the exceed the upper limit of 1.02 m/s.") -> Note: The limiting average air velocity does not the exceed the upper limit of 1.02 m/s.
C28: =IF(H23>1.02,"See note 3 above."," ") -> 

Sheet Air_SI_C
B1: =Main!B26 -> AtriumCalc Version 1.1 © 2014 John H. Klote
B3: Project: | C3: =Main!D12 -> Atrium in Our Favorite Building, 10 Main Street, Kloteville, NY
B4: Routine 5C: Airflow to Control Smoke Flow from the Plume
B16: Input: | C16: Q = | D16: 5000 | E16: kW | G16: Output: | H16: ve = | I16: =ROUND(0.057*(D16/D18)^(1/3),3) -> 0.469 | J16: m/s
C17: A = | D17: 60 | E17: m2 | H17: V = | I17: =D17*I16 -> 28.14 | J17: m3/s
C18: z = | D18: 9 | E18: m
C19: =IF(D18<3,"CAUTION: The requirement of note 3 above is not satisfied.", "Note: The requirement of note 3 above is satisfied. ") -> Note: The requirement of note 3 above is satisfied.
C20: =IF(I16>1.02,"CAUTION: The limiting average air velocity exceeds the upper limit of 1.02 m/s.","Note: The limiting average air velocity does not the exceed the upper limit of 1.02 m/s.") -> Note: The limiting average air velocity does not the exceed the upper limit of 1.02 m/s.
C21: =IF(I16>1.02,"See note 4 above.", " ") -> 
